[Event "Netanya Open 2019"]
[Site "Netanya"]
[Date "2019.07.02"]
[Round "9.10"]
[White "Gorshtein, Ido"]
[Black "Erenberg, Ariel"]
[Result "0-1"]
[ECO "C77"]
[WhiteElo "2367"]
[BlackElo "2434"]
[Annotator "NA"]
[PlyCount "80"]
[EventDate "2019.06.23"]
[EventType "swiss"]
[EventCountry "ISR"]
[SourceTitle "playchess.com"]
[Source "ChessBase"]
[SourceQuality "1"]
[TimeControl "40/5400+30:1800+30"]

1. e4 {[%emt 0:00:00]} e5 {[%emt 0:00:00]} 2. Nf3 {[%emt 0:00:00]} Nc6 {[%emt 0:00:02]} 3. Bb5 {[%emt 0:00:00]} a6 {[%emt 0:00:03]} 4. Ba4 {[%emt 0:00:00]} Nf6 {[%emt 0:00:15]} 5. Nc3 {[%emt 0:00:00]} b5 {[%emt 0:05:05]} 6. Bb3 {[%emt 0:00:01]} Be7 {[%emt 0:00:07]} 7. d3 {[%emt 0:00:04]} d6 {[%emt 0:00:36]} 8. a3 {[%emt 0:00:04]} O-O {[%emt 0:00:21]} 9. O-O {[%emt 0:00:04]} Na5 {[%emt 0:00:03]} 10. Ba2 {[%emt 0:00:05]} Be6 {[%emt 0:00:04]} 11. d4 {[%emt 0:00:07]} Bxa2 {[%emt 0:00:10]} 12. Rxa2 {[%emt 0:00:07]} Re8 {[%emt 0:00:04]} 13. Re1 {[%emt 0:01:55]} h6 {[%emt 0:22:04]} 14. d5 {[%emt 0:09:10]} Rc8 {[%emt 0:03:15]} 15. b4 {[%emt 0:03:53]} Nc4 {[%emt 0:00:57]} 16. Qd3 {[%emt 0:05:28]} c6 {[%emt 0:02:42]} 17. a4 {[%emt 0:05:20]} cxd5 {[%emt 0:00:35]} 18. exd5 {[%emt 0:00:25]} Qd7 {[%emt 0:02:50]} 19. Nd2 {[%emt 0:07:08]} Rc7 {[%emt 0:23:22]} 20. axb5 {[%emt 0:03:12]} axb5 {[%emt 0:00:45]} 21. Nxc4 {[%emt 0:00:48]} Rxc4 {[%emt 0:00:05]} 22. Nxb5 {[%emt 0:03:13]} Qxb5 {[%emt 0:08:19]} 23. Ra5 {[%emt 0:00:15]} e4 {[%emt 0:01:39]} 24. Qe2 {[%emt 0:06:20]} Qxb4 {[%emt 0:00:48]} 25. Bd2 {[%emt 0:00:04]} Rc3 {[%emt 0:00:49]} 26. Rb5 {[%emt 0:14:37]} Qc4 {[%emt 0:00:10]} 27. Bxc3 {[%emt 0:00:04]} Qxc3 {[%emt 0:00:03]} 28. Rb3 {[%emt 0:00:19]} Qc5 {[%emt 0:07:13]} 29. c4 {[%emt 0:00:15]} Rc8 {[%emt 0:00:48]} 30. Rc1 {[%emt 0:02:21]} Qxd5 {[%emt 0:01:27]} 31. Rb8 {[%emt 0:00:56]} Qc5 {[%emt 0:01:51]} 32. Rxc8+ {[%emt 0:00:07]} Qxc8 {[%emt 0:00:02]} 33. Rd1 {[%emt 0:00:52]} Qc5 {[%emt 0:00:34]} 34. h3 {[%emt 0:00:43]} h5 {[%emt 0:00:58]} 35. Rd2 {[%emt 0:01:49]} g6 {[%emt 0:00:26]} 36. Rd1 {[%emt 0:00:18]} Kg7 {[%emt 0:00:22]} 37. Kh1 {[%emt 0:02:20]} h4 {[%emt 0:01:28]} 38. Kg1 {[%emt 0:00:32]} Bd8 {[%emt 0:01:01]} 39. Rb1 {[%emt 0:03:48]} Bb6 {[%emt 0:01:26]} 40. Kf1 {[%emt 0:03:17]} Qd4 {[%emt 0:01:24]} 0-1

[Event "Netanya Open 2019"]
[Site "Netanya"]
[Date "2019.07.02"]
[Round "9.12"]
[White "Bronstein, Or"]
[Black "Huzman, Alexander"]
[Result "1/2-1/2"]
[ECO "E11"]
[WhiteElo "2378"]
[BlackElo "2588"]
[Annotator "ChessBase"]
[PlyCount "62"]
[EventDate "2019.06.23"]
[EventType "swiss"]
[EventCountry "ISR"]
[SourceTitle "playchess.com"]
[Source "ChessBase"]
[SourceQuality "1"]
[TimeControl "40/5400+30:1800+30"]

1. d4 {[%emt 0:00:00]} Nf6 {[%emt 0:00:10]} 2. c4 {[%emt 0:00:00]} e6 {[%emt 0:00:04]} 3. Nf3 {[%emt 0:00:00]} Bb4+ {[%emt 0:00:40]} 4. Bd2 {[%emt 0:00:18]} Qe7 {[%emt 0:01:56]} 5. g3 {[%emt 0:03:34]} Nc6 {[%emt 0:00:16]} 6. a3 {[%emt 0:00:56]} Bxd2+ {[%emt 0:03:43]} 7. Qxd2 {[%emt 0:00:25]} d5 {[%emt 0:05:51]} 8. Bg2 {[%emt 0:01:29]} dxc4 {[%emt 0:03:23]} 9. Qc3 {[%emt 0:00:44]} O-O {[%emt 0:00:30]} 10. Nbd2 {[%emt 0:02:57]} Rd8 {[%emt 0:04:41]} 11. Nxc4 {[%emt 0:09:22]} Nd5 {[%emt 0:03:42]} 12. Qc2 {[%emt 0:06:39]} Nb6 {[%emt 0:09:57]} 13. Rd1 {[%emt 0:06:29]} Nxc4 {[%emt 0:00:45]} 14. Qxc4 {[%emt 0:00:24]} Bd7 {[%emt 0:00:01]} 15. O-O {[%emt 0:00:34]} Be8 {[%emt 0:00:03]} 16. Rc1 {[%emt 0:12:42]} a5 {[%emt 0:05:15]} 17. e3 {[%emt 0:00:59]} Rdc8 {[%emt 0:04:01]} 18. Qc5 {[%emt 0:06:02]} Rab8 {[%emt 0:07:35]} 19. Nd2 {[%emt 0:09:31]} b6 {[%emt 0:01:30]} 20. Qxe7 {[%emt 0:01:42]} Nxe7 {[%emt 0:00:20]} 21. Nc4 {[%emt 0:01:11]} f6 {[%emt 0:11:40]} 22. Rfd1 {[%emt 0:03:58]} Rd8 {[%emt 0:00:35]} 23. e4 {[%emt 0:04:50]} Ba4 {[%emt 0:08:29]} 24. Rd2 {[%emt 0:00:29]} Bb5 {[%emt 0:00:07]} 25. Bh3 {[%emt 0:08:25]} Kf7 {[%emt 0:01:04]} 26. Bf1 {[%emt 0:02:38]} Bxc4 {[%emt 0:08:03]} 27. Bxc4 {[%emt 0:01:16]} c5 {[%emt 0:01:12]} 28. f4 {[%emt 0:05:08]} Nc6 {[%emt 0:06:17]} 29. d5 {[%emt 0:00:35]} exd5 {[%emt 0:00:11]} 30. Rxd5 {[%emt 0:01:19]} Ke7 {[%emt 0:00:13]} 31. Kf2 {[%emt 0:00:48]} Rxd5 {[%emt 0:00:38]} 1/2-1/2

[Event "Netanya Open 2019"]
[Site "Netanya"]
[Date "2019.07.02"]
[Round "9.13"]
[White "Parkhov, Yair"]
[Black "Rechlis, Gad"]
[Result "1-0"]
[ECO "E70"]
[WhiteElo "2354"]
[BlackElo "2506"]
[Annotator "ChessBase"]
[PlyCount "39"]
[EventDate "2019.06.23"]
[EventType "swiss"]
[EventCountry "ISR"]
[SourceTitle "playchess.com"]
[Source "ChessBase"]
[SourceQuality "1"]
[TimeControl "40/5400+30:1800+30"]

1. d4 {[%emt 0:00:00]} Nf6 {[%emt 0:21:06]} 2. c4 {[%emt 0:00:00]} g6 {[%emt 0:01:32]} 3. Nc3 {[%emt 0:00:00]} Bg7 {[%emt 0:00:05]} 4. e4 {[%emt 0:00:00]} O-O {[%emt 0:00:20]} 5. Be3 {[%emt 0:00:15]} c6 {[%emt 0:27:34]} 6. e5 {[%emt 0:20:46]} Ne8 {[%emt 0:00:10]} 7. f4 {[%emt 0:00:20]} d6 {[%emt 0:00:24]} 8. Nf3 {[%emt 0:00:09]} f6 {[%emt 0:15:19]} 9. exd6 {[%emt 0:10:26]} exd6 {[%emt 0:03:17]} 10. Bd3 {[%emt 0:04:36]} f5 {[%emt 0:03:03]} 11. O-O {[%emt 0:02:07]} Nf6 {[%emt 0:00:04]} 12. Kh1 {[%emt 0:04:05]} Re8 {[%emt 0:00:29]} 13. Re1 {[%emt 0:00:22]} Na6 {[%emt 0:00:59]} 14. Qb3 {[%emt 0:07:20]} Qb6 {[%emt 0:02:13]} 15. Qxb6 {[%emt 0:08:33]} axb6 {[%emt 0:04:31]} 16. Bg1 {[%emt 0:01:46]} Be6 {[%emt 0:10:29]} 17. a3 {[%emt 0:01:05]} d5 {[%emt 0:01:33]} 18. Bf1 {[%emt 0:08:11]} Nc7 {[%emt 0:01:15]} 19. Ng5 {[%emt 0:00:27]} Rad8 {[%emt 0:04:03]} 20. Na4 {[%emt 0:06:19]} 1-0

[Event "Netanya Open 2019"]
[Site "Netanya"]
[Date "2019.07.02"]
[Round "9.14"]
[White "Zanan, Evgeny"]
[Black "Sivan, Yaacov"]
[Result "1/2-1/2"]
[ECO "B38"]
[WhiteElo "2505"]
[BlackElo "2320"]
[Annotator "ChessBase"]
[PlyCount "73"]
[EventDate "2019.06.23"]
[EventType "swiss"]
[EventCountry "ISR"]
[SourceTitle "playchess.com"]
[Source "ChessBase"]
[SourceQuality "1"]
[TimeControl "40/5400+30:1800+30"]

1. e4 {[%emt 0:00:00]} c5 {[%emt 0:00:00]} 2. Nf3 {[%emt 0:00:00]} Nc6 {[%emt 0:00:38]} 3. d4 {[%emt 0:00:00]} cxd4 {[%emt 0:00:11]} 4. Nxd4 {[%emt 0:00:01]} g6 {[%emt 0:00:10]} 5. c4 {[%emt 0:00:10]} Bg7 {[%emt 0:00:49]} 6. Be3 {[%emt 0:00:06]} Nf6 {[%emt 0:00:21]} 7. Nc3 {[%emt 0:00:05]} O-O {[%emt 0:00:49]} 8. Be2 {[%emt 0:01:51]} d6 {[%emt 0:00:38]} 9. f3 {[%emt 0:02:44]} a5 {[%emt 0:01:36]} 10. b3 {[%emt 0:01:50]} Nd7 {[%emt 0:06:09]} 11. Ndb5 {[%emt 0:03:46]} Nc5 {[%emt 0:05:00]} 12. Rc1 {[%emt 0:01:58]} a4 {[%emt 0:09:40]} 13. O-O {[%emt 0:04:24]} axb3 {[%emt 0:01:46]} 14. axb3 {[%emt 0:00:05]} f5 {[%emt 0:06:06]} 15. exf5 {[%emt 0:14:50]} Bxf5 {[%emt 0:02:10]} 16. g4 {[%emt 0:00:57]} Be6 {[%emt 0:08:01]} 17. Nd5 {[%emt 0:05:12]} Ra2 {[%emt 0:16:21]} 18. b4 {[%emt 0:12:02]} Bxd5 {[%emt 0:03:53]} 19. Qxd5+ {[%emt 0:16:14]} e6 {[%emt 0:03:15]} 20. Qxd6 {[%emt 0:08:33]} Qxd6 {[%emt 0:02:41]} 21. Nxd6 {[%emt 0:00:08]} Rxe2 {[%emt 0:00:30]} 22. Bxc5 {[%emt 0:00:21]} Ne5 {[%emt 0:04:14]} 23. Rf2 {[%emt 0:21:48]} Nxf3+ {[%emt 0:06:22]} 24. Kf1 {[%emt 0:00:05]} Rxf2+ {[%emt 0:02:58]} 25. Kxf2 {[%emt 0:00:06]} Nxh2+ {[%emt 0:06:44]} 26. Kg2 {[%emt 0:00:06]} Nxg4 {[%emt 0:00:10]} 27. Nxb7 {[%emt 0:00:04]} Rb8 {[%emt 0:03:19]} 28. Na5 {[%emt 0:01:43]} Ne5 {[%emt 0:00:25]} 29. Bd6 {[%emt 0:01:10]} Ra8 {[%emt 0:00:50]} 30. c5 {[%emt 0:01:31]} Nd3 {[%emt 0:04:33]} 31. Rc4 {[%emt 0:01:35]} Nxb4 {[%emt 0:00:12]} 32. Rxb4 {[%emt 0:02:35]} Bc3 {[%emt 0:00:04]} 33. Rb3 {[%emt 0:00:00]} Bxa5 {[%emt 0:00:13]} 34. Ra3 {[%emt 0:00:00]} Kf7 {[%emt 0:00:42]} 35. c6 {[%emt 0:00:49]} Rc8 {[%emt 0:01:03]} 36. Rxa5 {[%emt 0:00:08]} Rxc6 {[%emt 0:00:04]} 37. Bf4 {[%emt 0:00:21]} 1/2-1/2

[Event "Netanya Open 2019"]
[Site "Netanya"]
[Date "2019.07.02"]
[Round "9.15"]
[White "Globus, Or"]
[Black "Zoler, Dan"]
[Result "1/2-1/2"]
[ECO "A50"]
[WhiteElo "2352"]
[BlackElo "2499"]
[Annotator "ChessBase"]
[PlyCount "107"]
[EventDate "2019.06.23"]
[EventType "swiss"]
[EventCountry "ISR"]
[SourceTitle "playchess.com"]
[Source "ChessBase"]
[SourceQuality "1"]
[TimeControl "40/5400+30:1800+30"]

1. d4 {[%emt 0:00:00]} Nf6 {[%emt 0:00:44]} 2. c4 {[%emt 0:00:00]} b6 {[%emt 0:00:06]} 3. Nf3 {[%emt 0:09:06]} Bb7 {[%emt 0:00:32]} 4. g3 {[%emt 0:01:19]} g6 {[%emt 0:00:49]} 5. Bg2 {[%emt 0:01:07]} Bg7 {[%emt 0:00:07]} 6. O-O {[%emt 0:00:58]} O-O {[%emt 0:00:09]} 7. Bf4 {[%emt 0:09:04]} c5 {[%emt 0:07:32]} 8. d5 {[%emt 0:06:51]} b5 {[%emt 0:02:03]} 9. Re1 {[%emt 0:08:58]} bxc4 {[%emt 0:24:42]} 10. Nc3 {[%emt 0:08:08]} Nh5 {[%emt 0:05:19]} 11. Bg5 {[%emt 0:06:26]} d6 {[%emt 0:08:19]} 12. e4 {[%emt 0:02:03]} Nd7 {[%emt 0:03:41]} 13. g4 {[%emt 0:10:15]} Nhf6 {[%emt 0:00:19]} 14. e5 {[%emt 0:01:43]} dxe5 {[%emt 0:03:16]} 15. Nxe5 {[%emt 0:00:54]} Nxe5 {[%emt 0:04:09]} 16. Rxe5 {[%emt 0:00:06]} h6 {[%emt 0:04:03]} 17. Bh4 {[%emt 0:04:27]} g5 {[%emt 0:04:14]} 18. Bg3 {[%emt 0:01:37]} Ne8 {[%emt 0:00:37]} 19. Re3 {[%emt 0:04:45]} Nd6 {[%emt 0:01:29]} 20. Qe2 {[%emt 0:01:08]} Bf6 {[%emt 0:02:14]} 21. Re1 {[%emt 0:01:07]} Ba6 {[%emt 0:03:41]} 22. h4 {[%emt 0:03:52]} Rb8 {[%emt 0:02:00]} 23. hxg5 {[%emt 0:05:55]} hxg5 {[%emt 0:00:13]} 24. Be5 {[%emt 0:01:09]} Kg7 {[%emt 0:13:11]} 25. Rh3 {[%emt 0:04:11]} Rh8 {[%emt 0:01:52]} 26. Rxh8 {[%emt 0:00:53]} Qxh8 {[%emt 0:00:53]} 27. Bxf6+ {[%emt 0:04:43]} exf6 {[%emt 0:00:06]} 28. Na4 {[%emt 0:00:48]} Re8 {[%emt 0:02:24]} 29. Qd2 {[%emt 0:00:11]} Bb5 {[%emt 0:01:14]} 30. Nxc5 {[%emt 0:01:08]} Rxe1+ {[%emt 0:00:16]} 31. Qxe1 {[%emt 0:00:03]} Qc8 {[%emt 0:00:05]} 32. Qe3 {[%emt 0:01:07]} Bd7 {[%emt 0:03:19]} 33. f3 {[%emt 0:01:27]} Qc7 {[%emt 0:00:12]} 34. Bf1 {[%emt 0:00:51]} Bc8 {[%emt 0:01:09]} 35. b4 {[%emt 0:00:29]} Qb6 {[%emt 0:01:54]} 36. a3 {[%emt 0:00:31]} Bb7 {[%emt 0:00:04]} 37. Qd4 {[%emt 0:00:32]} Qc7 {[%emt 0:00:36]} 38. Kg2 {[%emt 0:00:29]} Qe7 {[%emt 0:00:52]} 39. Nxb7 {[%emt 0:00:33]} Qxb7 {[%emt 0:01:05]} 40. Bxc4 {[%emt 0:00:25]} Qc7 {[%emt 0:00:00]} 41. Be2 {[%emt 0:30:32]} Qb8 {[%emt 0:07:36]} 42. a4 {[%emt 0:00:00]} Qe8 {[%emt 0:02:30]} 43. Bd1 {[%emt 0:00:00]} Qe1 {[%emt 0:01:47]} 44. b5 {[%emt 0:00:00]} Kg8 {[%emt 0:02:31]} 45. Bc2 {[%emt 0:00:00]} Qe2+ {[%emt 0:06:49]} 46. Qf2 {[%emt 0:00:00]} Qc4 {[%emt 0:00:06]} 47. Qd2 {[%emt 0:00:00]} Qc5 {[%emt 0:02:04]} 48. Bd3 {[%emt 0:00:00]} Kf8 {[%emt 0:00:59]} 49. Be2 {[%emt 0:00:00]} Ke7 {[%emt 0:00:56]} 50. a5 {[%emt 0:00:00]} Kd7 {[%emt 0:02:17]} 51. Qb2 {[%emt 0:00:00]} f5 {[%emt 0:03:20]} 52. Qe5 {[%emt 0:00:00]} fxg4 {[%emt 0:00:51]} 53. fxg4 {[%emt 0:00:16]} Qb4 {[%emt 0:02:00]} 54. b6 {[%emt 0:01:49]} 1/2-1/2

[Event "Netanya Open 2019"]
[Site "Netanya"]
[Date "2019.07.02"]
[Round "9.16"]
[White "Bar, Roman"]
[Black "Rozen, Eytan"]
[Result "1-0"]
[ECO "A25"]
[WhiteElo "2497"]
[BlackElo "2317"]
[Annotator "ChessBase"]
[PlyCount "103"]
[EventDate "2019.06.23"]
[EventType "swiss"]
[EventCountry "ISR"]
[SourceTitle "playchess.com"]
[Source "ChessBase"]
[SourceQuality "1"]
[TimeControl "40/5400+30:1800+30"]

1. c4 {[%emt 0:00:00]} e5 {[%emt 0:00:13]} 2. g3 {[%emt 0:00:00]} Nc6 {[%emt 0:00:45]} 3. Bg2 {[%emt 0:00:06]} g6 {[%emt 0:00:31]} 4. Nc3 {[%emt 0:01:17]} Bg7 {[%emt 0:00:07]} 5. d3 {[%emt 0:00:09]} Nge7 {[%emt 0:00:20]} 6. e3 {[%emt 0:02:09]} d6 {[%emt 0:01:02]} 7. Nge2 {[%emt 0:00:34]} O-O {[%emt 0:00:22]} 8. O-O {[%emt 0:00:08]} Be6 {[%emt 0:00:29]} 9. Nd5 {[%emt 0:01:27]} Rb8 {[%emt 0:01:26]} 10. Rb1 {[%emt 0:12:50]} b5 {[%emt 0:05:25]} 11. Bd2 {[%emt 0:00:43]} bxc4 {[%emt 0:01:19]} 12. dxc4 {[%emt 0:00:44]} Bf5 {[%emt 0:00:23]} 13. e4 {[%emt 0:01:36]} Bg4 {[%emt 0:02:30]} 14. f3 {[%emt 0:02:53]} Bd7 {[%emt 0:02:37]} 15. Bg5 {[%emt 0:10:05]} f6 {[%emt 0:08:27]} 16. Be3 {[%emt 0:00:18]} f5 {[%emt 0:00:57]} 17. Qd2 {[%emt 0:02:08]} Nxd5 {[%emt 0:16:05]} 18. cxd5 {[%emt 0:09:05]} Ne7 {[%emt 0:00:50]} 19. Rfd1 {[%emt 0:06:43]} Rb7 {[%emt 0:02:41]} 20. b3 {[%emt 0:05:14]} Qb8 {[%emt 0:06:51]} 21. Rbc1 {[%emt 0:03:04]} Qa8 {[%emt 0:07:18]} 22. Qa5 {[%emt 0:04:45]} Qb8 {[%emt 0:01:00]} 23. Rc2 {[%emt 0:04:27]} Bb5 {[%emt 0:08:43]} 24. Nc3 {[%emt 0:03:27]} c5 {[%emt 0:04:00]} 25. Nb1 {[%emt 0:07:26]} Bd7 {[%emt 0:08:31]} 26. Na3 {[%emt 0:03:08]} Nc8 {[%emt 0:02:18]} 27. Qd2 {[%emt 0:01:54]} a5 {[%emt 0:02:48]} 28. Nc4 {[%emt 0:03:03]} a4 {[%emt 0:01:28]} 29. Na5 {[%emt 0:00:25]} axb3 {[%emt 0:01:20]} 30. axb3 {[%emt 0:01:38]} Rb5 {[%emt 0:01:46]} 31. Bf1 {[%emt 0:01:29]} Rb6 {[%emt 0:02:03]} 32. Bg5 {[%emt 0:02:08]} Rb4 {[%emt 0:02:20]} 33. Bc4 {[%emt 0:01:53]} Nb6 {[%emt 0:06:19]} 34. Nc6 {[%emt 0:00:12]} Nxc4 {[%emt 0:00:56]} 35. bxc4 {[%emt 0:02:00]} Bxc6 {[%emt 0:00:10]} 36. dxc6 {[%emt 0:00:05]} fxe4 {[%emt 0:01:32]} 37. fxe4 {[%emt 0:00:27]} Rb1 {[%emt 0:01:55]} 38. Rxb1 {[%emt 0:07:38]} Qxb1+ {[%emt 0:00:01]} 39. Rc1 {[%emt 0:00:08]} Qxe4 {[%emt 0:01:10]} 40. Qd5+ {[%emt 0:01:10]} Qxd5 {[%emt 0:00:02]} 41. cxd5 {[%emt 0:30:07]} Rc8 {[%emt 0:04:14]} 42. Rb1 {[%emt 0:00:00]} h6 {[%emt 0:04:25]} 43. Be7 {[%emt 0:00:00]} Bf8 {[%emt 0:01:36]} 44. Rb7 {[%emt 0:00:00]} c4 {[%emt 0:05:35]} 45. Kf2 {[%emt 0:00:00]} c3 {[%emt 0:01:13]} 46. Ke2 {[%emt 0:00:00]} e4 {[%emt 0:02:28]} 47. Bxf8 {[%emt 0:00:00]} Kxf8 {[%emt 0:00:27]} 48. Rh7 {[%emt 0:00:00]} Kg8 {[%emt 0:00:55]} 49. Rd7 {[%emt 0:00:00]} Kf8 {[%emt 0:00:15]} 50. c7 {[%emt 0:00:00]} Ke8 {[%emt 0:00:51]} 51. Rh7 {[%emt 0:00:00]} h5 {[%emt 0:00:22]} 52. h4 {[%emt 0:00:00]} 1-0

[Event "Netanya Open 2019"]
[Site "Netanya"]
[Date "2019.07.02"]
[Round "9.17"]
[White "Tzidkiya, Yeshaayahu"]
[Black "Khmelniker, Ilya"]
[Result "0-1"]
[ECO "C54"]
[WhiteElo "2265"]
[BlackElo "2483"]
[Annotator "ChessBase"]
[PlyCount "100"]
[EventDate "2019.06.23"]
[EventType "swiss"]
[EventCountry "ISR"]
[SourceTitle "playchess.com"]
[Source "ChessBase"]
[SourceQuality "1"]
[TimeControl "40/5400+30:1800+30"]

1. e4 {[%emt 0:00:00]} e5 {[%emt 0:00:00]} 2. Nf3 {[%emt 0:00:00]} Nc6 {[%emt 0:00:00]} 3. Bc4 {[%emt 0:00:00]} Bc5 {[%emt 0:00:00]} 4. c3 {[%emt 0:00:00]} Nf6 {[%emt 0:00:00]} 5. d3 {[%emt 0:00:00]} d6 {[%emt 0:00:00]} 6. Bb3 {[%emt 0:00:02]} a6 {[%emt 0:00:08]} 7. Nbd2 {[%emt 0:00:11]} Ba7 {[%emt 0:00:16]} 8. h3 {[%emt 0:00:07]} h6 {[%emt 0:00:39]} 9. Nf1 {[%emt 0:00:10]} d5 {[%emt 0:03:03]} 10. Qe2 {[%emt 0:00:39]} Be6 {[%emt 0:13:59]} 11. exd5 {[%emt 0:16:46]} Nxd5 {[%emt 0:00:10]} 12. Nxe5 {[%emt 0:06:25]} Nxe5 {[%emt 0:25:44]} 13. Qxe5 {[%emt 0:00:12]} O-O {[%emt 0:00:04]} 14. Ng3 {[%emt 0:18:22]} Nb4 {[%emt 0:05:13]} 15. cxb4 {[%emt 0:00:57]} Bxb3 {[%emt 0:00:16]} 16. O-O {[%emt 0:00:09]} Bd4 {[%emt 0:00:52]} 17. Qf4 {[%emt 0:04:06]} Be6 {[%emt 0:03:23]} 18. Nf5 {[%emt 0:14:13]} Bxf5 {[%emt 0:07:48]} 19. Qxf5 {[%emt 0:00:12]} Re8 {[%emt 0:01:13]} 20. Rb1 {[%emt 0:04:01]} c6 {[%emt 0:08:24]} 21. Qg4 {[%emt 0:10:46]} Re6 {[%emt 0:01:20]} 22. Bd2 {[%emt 0:03:49]} Qd5 {[%emt 0:08:08]} 23. b3 {[%emt 0:04:08]} h5 {[%emt 0:04:05]} 24. Qf4 {[%emt 0:08:02]} Re2 {[%emt 0:03:51]} 25. Rbe1 {[%emt 0:01:09]} g5 {[%emt 0:07:16]} 26. Qxg5+ {[%emt 0:07:59]} Qxg5 {[%emt 0:00:07]} 27. Bxg5 {[%emt 0:00:02]} Bxf2+ {[%emt 0:00:07]} 28. Rxf2 {[%emt 0:00:02]} Rxe1+ {[%emt 0:00:06]} 29. Kh2 {[%emt 0:00:03]} Rae8 {[%emt 0:00:09]} 30. Bf6 {[%emt 0:00:47]} R1e2 {[%emt 0:02:02]} 31. Rf5 {[%emt 0:00:34]} R8e6 {[%emt 0:01:14]} 32. a4 {[%emt 0:00:47]} Kh7 {[%emt 0:00:31]} 33. Bd4 {[%emt 0:00:24]} Kg6 {[%emt 0:00:57]} 34. Rf3 {[%emt 0:00:34]} f6 {[%emt 0:03:30]} 35. Rg3+ {[%emt 0:00:23]} Kf7 {[%emt 0:00:09]} 36. Rf3 {[%emt 0:00:06]} Rd2 {[%emt 0:01:31]} 37. Bc3 {[%emt 0:00:58]} Rd1 {[%emt 0:00:20]} 38. Bb2 {[%emt 0:01:22]} Rd6 {[%emt 0:01:18]} 39. Be5 {[%emt 0:00:07]} Re6 {[%emt 0:00:20]} 40. Bb2 {[%emt 0:00:28]} Rb1 {[%emt 0:01:09]} 41. Rf2 {[%emt 0:30:36]} Kg6 {[%emt 0:04:34]} 42. h4 {[%emt 0:00:00]} Rd1 {[%emt 0:01:14]} 43. Rf3 {[%emt 0:00:00]} Rd6 {[%emt 0:00:30]} 44. d4 {[%emt 0:00:00]} Re6 {[%emt 0:00:30]} 45. a5 {[%emt 0:00:00]} Rb1 {[%emt 0:00:30]} 46. Rf2 {[%emt 0:00:00]} f5 {[%emt 0:00:30]} 47. Rd2 {[%emt 0:00:00]} f4 {[%emt 0:00:30]} 48. d5 {[%emt 0:00:00]} Ree1 {[%emt 0:00:30]} 49. g4 {[%emt 0:00:00]} hxg4 {[%emt 0:00:30]} 50. d6 {[%emt 0:00:00]} Red1 {[%emt 0:00:30]} 0-1

[Event "Netanya Open 2019"]
[Site "Netanya"]
[Date "2019.07.02"]
[Round "9.18"]
[White "Flom, Gabriel"]
[Black "Aharon, Ofir"]
[Result "1-0"]
[ECO "D90"]
[WhiteElo "2480"]
[BlackElo "2302"]
[Annotator "ChessBase"]
[PlyCount "73"]
[EventDate "2019.06.23"]
[EventType "swiss"]
[EventCountry "ISR"]
[SourceTitle "playchess.com"]
[Source "ChessBase"]
[SourceQuality "1"]
[TimeControl "40/5400+30:1800+30"]

1. d4 {[%emt 0:03:20]} Nf6 {[%emt 0:00:00]} 2. c4 {[%emt 0:00:03]} g6 {[%emt 0:00:00]} 3. Nc3 {[%emt 0:00:04]} d5 {[%emt 0:00:00]} 4. Nf3 {[%emt 0:00:15]} Bg7 {[%emt 0:00:00]} 5. h4 {[%emt 0:00:05]} c6 {[%emt 0:08:43]} 6. Bg5 {[%emt 0:00:57]} h6 {[%emt 0:05:02]} 7. Bxf6 {[%emt 0:00:20]} Bxf6 {[%emt 0:00:28]} 8. e3 {[%emt 0:00:05]} O-O {[%emt 0:01:59]} 9. Be2 {[%emt 0:00:25]} Qa5 {[%emt 0:05:13]} 10. Qc2 {[%emt 0:01:24]} Na6 {[%emt 0:02:34]} 11. a3 {[%emt 0:00:30]} Bf5 {[%emt 0:02:08]} 12. Qc1 {[%emt 0:01:17]} dxc4 {[%emt 0:11:11]} 13. Bxc4 {[%emt 0:00:05]} Bg4 {[%emt 0:07:11]} 14. b4 {[%emt 0:01:20]} Qh5 {[%emt 0:01:23]} 15. Ne2 {[%emt 0:11:40]} Bxf3 {[%emt 0:01:33]} 16. Ng3 {[%emt 0:01:28]} Qg4 {[%emt 0:03:17]} 17. gxf3 {[%emt 0:00:04]} Qxf3 {[%emt 0:00:14]} 18. Qc2 {[%emt 0:01:02]} e6 {[%emt 0:03:25]} 19. h5 {[%emt 0:07:00]} g5 {[%emt 0:00:27]} 20. Qd3 {[%emt 0:00:24]} Rfd8 {[%emt 0:04:38]} 21. Bxa6 {[%emt 0:09:54]} bxa6 {[%emt 0:00:06]} 22. Qe4 {[%emt 0:00:12]} Qxe4 {[%emt 0:00:23]} 23. Nxe4 {[%emt 0:00:01]} Be7 {[%emt 0:02:13]} 24. Ke2 {[%emt 0:00:31]} a5 {[%emt 0:02:36]} 25. bxa5 {[%emt 0:00:32]} Rd5 {[%emt 0:01:20]} 26. Rhc1 {[%emt 0:00:18]} Rxa5 {[%emt 0:01:38]} 27. Rxc6 {[%emt 0:00:12]} Rxa3 {[%emt 0:03:04]} 28. Rb1 {[%emt 1:00:32]} Bd8 {[%emt 0:33:14]} 29. Rb7 {[%emt 0:00:30]} Ra2+ {[%emt 0:00:00]} 30. Kf1 {[%emt 0:00:00]} Bb6 {[%emt 0:00:00]} 31. d5 {[%emt 0:00:00]} exd5 {[%emt 0:00:00]} 32. Nf6+ {[%emt 0:00:00]} Kg7 {[%emt 0:00:00]} 33. Nxd5 {[%emt 0:00:00]} Rd8 {[%emt 0:00:00]} 34. Rf6 {[%emt 0:00:00]} Rf8 {[%emt 0:00:43]} 35. Rg6+ {[%emt 0:00:00]} Kh8 {[%emt 0:00:49]} 36. Nf6 {[%emt 0:00:00]} Bxe3 {[%emt 0:01:51]} 37. fxe3 {[%emt 0:00:00]} 1-0